{"text_format":"1","workbook":"xlsx","n_sheets":1,"sheets":["1-Plan"],"not_rendered":{"charts":0,"images":0,"macros":0,"external_links":0,"defined_names":1,"comments":0,"pivot_tables":0},"unopened":[],"bounds":{"document_bytes":16777216,"sheet_cells":100000,"rows_first":2000,"rows_last":500,"rows_between":2000,"halvings":0,"cell_chars":16384,"cell_head_chars":4096},"cells_cut":0,"cells_raw":0,"read":"whole","date_system":"1900"}

{"sheet":"1-Plan","index":0,"n_rows":40,"n_cols":19,"rows_kept":40,"cut":false,"hidden":false,"merged":[[1,0,1,1],[3,0,3,1],[5,0,5,1],[6,4,6,5],[6,0,6,1],[3,2,3,8],[13,17,13,18],[4,11,4,14],[7,0,7,1],[8,0,8,1],[9,0,9,1],[9,4,9,5],[9,6,9,7],[10,0,10,1],[7,4,7,5],[8,4,8,5],[6,11,6,16],[10,4,10,5],[10,6,10,7],[6,6,6,7],[7,6,7,7],[8,6,8,7]]}
[]
["Project number",null,5243]
[]
["Project title",null,"Interaction Studies of Improved VVER Structural Materials at Severe Accident Conditions"]
[null,null,null,null,null,null,null,null,null,null,null,"Project duration, months",null,null,null,null,null,24]
["Project manager ",null,"Volodymyr Semenovych Krasnorutskyy "]
["Institutions ",null,"Names of institutions involved","Short Name","Country",null,"City",null,"I-Code","Overhead",null,"Operative commencement date",null,null,null,null,null,"2005-12-01"]
["Coordinating ",null,"Kharkiv Institute of Physics and Technology","KIPT","Ukraine",null,"Kharkiv",null,1,0.08]
["Participating 1",null,null,null,null,null,null,null,null,null,null,"Funding parties:",null,"USA","EU","Canada","Other","Total Cost"]
["Participating 2",null,null,null,null,null,null,null,null,null,null,"Contribution",null,750000,0,0,0,0,"(in \"USD\")"]
["Participating 3",null,null,null,null,null,null,null,null,null,null,null,null,null,null,null,null,230,"(in \"EUR\")"]
[]
[null,null,"Table 1. Work Schedule "]
[null,null,"Stages / Substages*",null,"Estimate Work Days",null,null,null,null,null,null,null,null,null,null,null,null,"Deliverables"]
["# Stages","#.# Stages","Name","Institution short name","Qtr1","Qtr2","Qtr3","Qtr4","Qtr5","Qtr6","Qtr7","Qtr8","Qtr9","Qtr10","Qtr11","Qtr12","Total by stage","Name","Months"]
[1,null,"Analyze literature data on interaction of materials in the core during severe accidents with core meltdown. Prepare categorized materials for conducting experiments","KIPT",null,null,null,null,null,null,null,null,null,null,null,null,{"$f":"SUM(E16:P16)","v":0}]
[null,"1.1","Analyze literature data on interaction of materials in the core during severe accidents with core meltdown","KIPT",null,null,null,null,null,null,null,null,null,null,null,null,0]
[null,"1.2","Identify the ratio of structural, fuel, and neutron-absorbing materials in the core","KIPT",null,null,null,null,null,null,null,null,null,null,null,null,0]
[null,"1.3","Prepare categorized materials for conducting experiments","KIPT",null,null,null,null,null,null,null,null,null,null,null,null,0]
[2,null,"Prepare model items from the researched structural elements. Obtain data on temperature parameters of the beginning of melt formation. Identify structural and phase composition of the mix","KIPT",null,null,null,null,null,null,null,null,null,null,null,null,0]
[null,"2.1","Prepare model items from the researched structural elements","KIPT",null,null,null,null,null,null,null,null,null,null,null,null,0]
[null,"2.2","Upgrade and prepare process facilities and equipment for experiments on melting of core materials and structures","KIPT"]
[null,"2.3","Adapt the existing experiment methodologies to the research objectives","KIPT"]
[null,"2.4","Elaborate methodologies to study structure and composition of power reactors' core materials before and after their interaction (in solid state and after melting).","KIPT"]
[null,"2.5","Experimentally determine the melting temperature of the material mix Ch18N10T+Dy2TiO5; Ch18N10T+B4C+ Dy2TiO5; Zr+Hf+B4C; UO2+Zr","KIPT",null,null,null,null,null,null,null,null,null,null,null,null,{"$f":"SUM(E25:P25)","v":0}]
[null,"2.6","Identify structural and phase composition of the mix","KIPT",null,null,null,null,null,null,null,null,null,null,null,null,0]
[3,null,"Determine the effects of structural peculiarities (close contact, availability of oxide on the surface) on the nature of the beginning of interaction of fuel and absorber rod materials. Study the structural state peculiarities of structural elements.","KIPT",null,null,null,null,null,null,null,null,null,null,null,null,0]
[null,"3.1","Prepare model items from the researched structural elements with close contact and with a pre-oxidized surface","KIPT",null,null,null,null,null,null,null,null,null,null,null,null,0]
[null,"3.2","Experimentally determine the melting temperature of the material mix Ch18N10T+Dy2TiO5; Ch18N10T+B4C+ Dy2TiO5; Zr+Hf+B4C; UO2+Zr depending on availability of oxides on their surfaces","KIPT",null,null,null,null,null,null,null,null,null,null,null,null,0]
[null,"3.3","Study the structural state of the materials after melting","KIPT",null,null,null,null,null,null,null,null,null,null,null,null,0]
[4,null,"Determine melt viscosity and fluidity parameters as a function of phase composition. Compare the results of the structural and phase state of the melts after primary and secondary melting.\nAnalyze the results obtained\n\n","KIPT",null,null,null,null,null,null,null,null,null,null,null,null,0]
[null,"4.1","Upgrade the facilities used to determine melt viscosity and fluidity parameters as a function of phase composition","KIPT",null,null,null,null,null,null,null,null,null,null,null,null,0]
[null,"4.2","Check and calibrate the facilities used to determine melt viscosity and fluidity parameters as a function of phase composition","KIPT",null,null,null,null,null,null,null,null,null,null,null,null,0]
[null,"4.3","Determine melt viscosity and fluidity parameters as a function of phase composition","KIPT",null,null,null,null,null,null,null,null,null,null,null,null,0]
[null,"4.4","Study the structural and phase state of the melts after primary and secondary melting\nAnalyze the results obtained.\n","KIPT",null,null,null,null,null,null,null,null,null,null,null,null,0]
[null,null,null,null,null,null,null,null,null,null,null,null,null,null,null,null,0]
[null,null,"Total Work Days:",null,{"$f":"SUM(E1:E36)/2","v":0},{"$f":"SUM(F1:F36)/2","v":0},{"$f":"SUM(G1:G36)/2","v":0},{"$f":"SUM(H1:H36)/2","v":0},{"$f":"SUM(I17:I36)/2","v":0},{"$f":"SUM(J17:J36)/2","v":0},{"$f":"SUM(K1:K36)/2","v":0},{"$f":"SUM(L1:L36)/2","v":0},{"$f":"SUM(M1:M36)/2","v":0},{"$f":"SUM(N17:N36)/2","v":0},{"$f":"SUM(O1:O36)/2","v":0},{"$f":"SUM(P1:P36)/2","v":0},{"$f":"SUM(Q17:Q36)/2","v":0}]
[]
[null,null,null,null,{"$f":"SUM(#REF!)","v":{"$error":"#REF!"}},{"$f":"SUM(#REF!)","v":{"$error":"#REF!"}},{"$f":"SUM(#REF!)","v":{"$error":"#REF!"}},{"$f":"SUM(#REF!)","v":{"$error":"#REF!"}},{"$f":"SUM(#REF!)","v":{"$error":"#REF!"}},{"$f":"SUM(#REF!)","v":{"$error":"#REF!"}},{"$f":"SUM(#REF!)","v":{"$error":"#REF!"}},{"$f":"SUM(#REF!)","v":{"$error":"#REF!"}},{"$f":"SUM(#REF!)","v":{"$error":"#REF!"}},{"$f":"SUM(#REF!)","v":{"$error":"#REF!"}},{"$f":"SUM(#REF!)","v":{"$error":"#REF!"}},{"$f":"SUM(#REF!)","v":{"$error":"#REF!"}},{"$f":"SUM(#REF!)","v":{"$error":"#REF!"}}]
[null,null,"The work plan is prepared in","USD"]